[Event "Charlotte Spring IM-C 2024"]
[Site "Charlotte"]
[Date "2024.03.29"]
[Round "3.5"]
[White "Posthuma, Joshua"]
[Black "Fierro Baquero, Martha L."]
[Result "1-0"]
[ECO "B27"]
[WhiteElo "2449"]
[BlackElo "2283"]
[Annotator "TA"]
[PlyCount "61"]
[EventDate "2024.03.27"]
[EventType "tourn"]
[EventCountry "USA"]
[SourceTitle "playchess.com"]
[Source "ChessBase"]
[SourceQuality "1"]
[TimeControl "5400+30"]

{[%evp 12,61,27,13,9,12,33,0,34,26,31,44,34,31,29,38,39,30,14,12,16,24,0,0,20,42,42,50,49,42,52,35,45,23,23,29,37,20,56,16,0,9,18,0,82,61,75,32,456,456,456,456]} 1. d4 {[%emt 0:04:17]} g6 {[%emt 0:00:13]} 2. e4 {[%emt 0:00:13]} Bg7 {[%emt 0:00:07]} 3. Nc3 {[%emt 0:00:14]} c5 {[%emt 0:00:05]} 4. dxc5 {[%emt 0:06:41]} Qa5 {[%emt 0:00:23]} 5. Bd2 {[%emt 0:05:17]} Qxc5 {[%emt 0:00:05]} 6. Nf3 {[%emt 0:01:33]} Nf6 {[%emt 0:01:04]} 7. Bd3 {[%emt 0:02:59]} O-O {[%emt 0:00:15]} 8. O-O {[%emt 0:03:35]} d6 {[%emt 0:04:47]} 9. h3 {[%emt 0:03:12]} Be6 {[%emt 0:04:05] The position is equal.} 10. Re1 {[%emt 0:08:10]} Nbd7 {[%emt 0:02:08][%cal Bb8d7,Bd7e5,Be5d3][%mdl 32]} 11. Be3 {[%emt 0:07:46]} Qa5 {[%emt 0:13:59]} 12. Nd4 {[%emt 0:14:25]} Ne5 {[%emt 0:00:06]} 13. Nxe6 {[%emt 0:01:25]} fxe6 {[%emt 0:00:05]} 14. Ne2 {[%emt 0:01:21]} d5 {[%emt 0:11:14]} 15. exd5 {[%emt 0:02:45]} Nxd5 {[%emt 0:00:25]} 16. Bd4 {[%emt 0:03:28]} Rad8 {[%emt 0:02:32]} 17. c3 {[%emt 0:03:31]} Nxd3 {[%emt 0:22:16]} 18. Qxd3 {[%emt 0:00:48]} e5 {[%emt 0:00:06]} 19. Be3 {[%emt 0:00:52]} Nxe3 {[%emt 0:01:17]} 20. Qxe3 {[%emt 0:00:12]} Qb5 {[%emt 0:00:25]} 21. Ng3 {[%emt 0:02:24][%cal Be2g3,Bg3e4,Be4f6][%mdl 32]} Qxb2 {[%emt 0:02:14]} 22. Rab1 {[%emt 0:04:44][%cal Ba1b1,Bb1b7,Bb7e7][%mdl 32]} Qxa2 {[%emt 0:05:24][%cal Og7h6] [#] White must now prevent ...Bh6!} 23. Rxb7 {[%emt 0:00:11]} a5 {[%emt 0:10:37]} 24. Rxe7 {[%emt 0:01:23]} Rf7 {[%emt 0:00:13]} 25. Qa7 {[%emt 0:03:31] next Rxf7 is good for White.} (25. Rxf7 {simplifies} Qxf7 26. Ra1 Qd5 27. c4) 25... Rdf8 {[%emt 0:02:13][%cal Of7e7] And now ...Rxe7! would win.} 26. Ne4 {[%emt 0:00:57]} a4 {[%emt 0:00:50]} 27. Rd1 {[%emt 0:02:01]} Bh6 {[%emt 0:09:19]} (27... Rxe7 $11 28. Qxe7 Qc2) 28. Rxf7 {[%emt 0:02:08]} Rxf7 {[%emt 0:02:19]} 29. Qb8+ {[%emt 0:00:07]} Rf8 $2 {[%emt 0:02:17][%mdl 8192] [#]} (29... Bf8 $1 $14) 30. Nf6+ $18 {[%emt 0:04:17]} ({Not} 30. Qxe5 Bg7 31. Qc7 Qe6 $11) 30... Kg7 {[%emt 0:03:34]} 31. Qxe5 {[%emt 0:01:12] Weighted Error Value: White=0.08 (flawless) /Black=0.38.  Loses game:     	---       	Black=1      Mistake:       	---       	Black=1      Inaccurate:     	White=2     	Black=2      OK:         	White=10    	Black=7      Best:        	White=2     	Black=1} 1-0

[Event "Charlotte Spring IM-C 2024"]
[Site "Charlotte"]
[Date "2024.03.29"]
[Round "4.1"]
[White "Eckert, Doug"]
[Black "Fierro Baquero, Martha L."]
[Result "1/2-1/2"]
[ECO "B15"]
[WhiteElo "2146"]
[BlackElo "2283"]
[Annotator "RC"]
[PlyCount "68"]
[EventDate "2024.03.27"]
[EventType "tourn"]
[EventCountry "USA"]
[SourceTitle "playchess.com"]
[Source "ChessBase"]
[SourceQuality "1"]
[TimeControl "5400+30"]

1. d4 {[%emt 0:06:08]} g6 {[%emt 0:00:09]} 2. e4 {[%emt 0:00:14]} Bg7 {[%emt 0:00:04]} 3. Nc3 {[%emt 0:00:05]} c6 {[%emt 0:00:03]} 4. Be3 {[%emt 0:00:09]} d5 {[%emt 0:00:34]} 5. e5 {[%emt 0:00:06]} f6 {[%emt 0:00:03]} 6. f4 {[%emt 0:01:19]} Nh6 {[%emt 0:00:05]} 7. Nf3 {[%emt 0:01:14]} Bg4 {[%emt 0:00:06]} 8. h3 {[%emt 0:04:01]} Bxf3 {[%emt 0:00:06]} 9. Qxf3 {[%emt 0:00:03]} O-O {[%emt 0:00:06]} 10. Qe2 {[%emt 0:03:47]} Nf5 {[%emt 0:03:19]} 11. Bf2 {[%emt 0:00:05]} fxe5 {[%emt 0:00:04]} 12. fxe5 {[%emt 0:00:36]} e6 {[%emt 0:02:42]} 13. g4 {[%emt 0:06:43]} Nh4 {[%emt 0:02:15]} 14. O-O-O {[%emt 0:00:06]} a6 {[%emt 0:08:34]} 15. Rd3 {[%emt 0:05:36]} c5 {[%emt 0:02:36]} 16. dxc5 {[%emt 0:11:15]} Nc6 {[%emt 0:00:08]} 17. Bg3 {[%emt 0:02:04]} Qg5+ {[%emt 0:24:09]} 18. Qd2 {[%emt 0:01:09]} Qxd2+ {[%emt 0:01:17]} 19. Rxd2 {[%emt 0:00:30]} Nf3 {[%emt 0:01:03]} 20. Rd1 {[%emt 0:00:10]} Bh6+ {[%emt 0:03:54]} 21. Kb1 {[%emt 0:00:26]} Nd2+ {[%emt 0:00:06]} 22. Ka1 {[%emt 0:00:05]} Nb4 {[%emt 0:11:38]} 23. a3 {[%emt 0:07:39]} Nxc2+ {[%emt 0:00:12]} 24. Ka2 {[%emt 0:00:01]} Ne3 {[%emt 0:39:17]} 25. Rxd2 {[%emt 0:00:08]} Nxf1 {[%emt 0:00:00]} 26. Rg2 {[%emt 0:00:10]} Nxg3 {[%emt 0:00:00]} 27. Rxg3 {[%emt 0:00:04]} Rf2 {[%emt 0:00:00]} 28. Na4 {[%emt 0:03:38]} Rd8 {[%emt 0:00:00]} 29. Rb3 {[%emt 0:01:42]} Rd7 {[%emt 0:00:00]} 30. Rd1 {[%emt 0:00:50]} Re2 {[%emt 0:00:00]} 31. Rd4 {[%emt 0:04:31]} Re4 {[%emt 0:00:00]} 32. Rxe4 {[%emt 0:06:30]} dxe4 {[%emt 0:00:00]} 33. c6 {[%emt 0:00:48]} bxc6 {[%emt 0:00:00]} 34. Nc5 {[%emt 0:00:04]} Re7 {[%emt 0:00:00]} 1/2-1/2

[Event "Charlotte Spring IM-C 2024"]
[Site "Charlotte"]
[Date "2024.03.29"]
[Round "4.2"]
[White "Mendez Tovar, Yessica Yissel"]
[Black "Posthuma, Joshua"]
[Result "0-1"]
[ECO "B35"]
[WhiteElo "1993"]
[BlackElo "2449"]
[Annotator "TA"]
[PlyCount "70"]
[EventDate "2024.03.27"]
[EventType "tourn"]
[EventCountry "USA"]
[SourceTitle "playchess.com"]
[Source "ChessBase"]
[SourceQuality "1"]
[TimeControl "5400+30"]

{[%evp 14,70,12,2,33,22,38,0,11,0,17,0,8,20,20,17,35,4,10,-16,26,18,19,17,38,47,50,34,126,134,137,125,137,84,111,8,13,6,0,0,0,-57,-95,-289,-221,-372,-219,-204,-212,-322,-318,-643,-627,-677,-514,-1264,-1121,-29997,-29998]} 1. e4 {[%emt 0:01:26]} c5 {[%emt 0:14:23]} 2. Nc3 {[%emt 0:00:14]} Nc6 {[%emt 0:01:06]} 3. Nf3 {[%emt 0:00:47]} g6 {[%emt 0:00:32]} 4. d4 {[%emt 0:04:05]} cxd4 {[%emt 0:00:15]} 5. Nxd4 {[%emt 0:00:10]} Bg7 {[%emt 0:00:08]} 6. Be3 {[%emt 0:00:26]} Nf6 {[%emt 0:00:15]} 7. Bc4 {[%emt 0:01:09]} O-O {[%emt 0:00:43]} 8. Bb3 {[%emt 0:09:30]} Re8 {[%emt 0:01:33]} 9. O-O {[%emt 0:05:57]} d6 {[%emt 0:01:28]} 10. f3 {[%emt 0:04:04]} Na5 {[%emt 0:04:46] The position is equal.} 11. Qd2 {[%emt 0:06:08]} Bd7 {[%emt 0:06:46]} 12. Rfe1 {[%emt 0:11:45]} Rc8 {[%emt 0:07:22]} 13. Rad1 {[%emt 0:03:02]} Nc4 {[%emt 0:03:34]} 14. Bxc4 {[%emt 0:00:15]} Rxc4 {[%emt 0:00:07]} 15. b3 {[%emt 0:15:32]} Rc8 {[%emt 0:02:27]} 16. Nd5 {[%emt 0:06:31]} a6 {[%emt 0:10:47]} 17. c4 {[%emt 0:08:35]} b5 {[%emt 0:03:05]} 18. Ne2 $36 {[%emt 0:01:15][%mdl 2048] White is more active.} Bc6 {[%emt 0:06:11]} 19. Bb6 {[%emt 0:03:16]} Qd7 {[%emt 0:00:24]} 20. Bd4 {[%emt 0:05:57]} e5 {[%emt 0:08:36]} (20... Bxd5 $14 21. cxd5 Qb7) 21. Nb6 $16 {[%emt 0:03:22][%csl LRc8,LRd7] A dynamic duo of knights.} Qc7 {[%emt 0:00:25] [#] aiming for ...Rb8.} 22. Bf2 {[%emt 0:03:56] cxb5 is the strong threat.} Rcd8 {[%emt 0:00:14]} 23. Rc1 {[%emt 0:00:46]} (23. Nc3 $142) 23... Qb7 {[%emt 0:01:23]} 24. Nd5 {[%emt 0:01:49]} ({White should play} 24. Nc3 $16) 24... Nxd5 $11 {[%emt 0:26:00]} 25. cxd5 {[%emt 0:00:04]} Bd7 {[%emt 0:00:00]} 26. Qa5 {[%emt 0:00:31]} Rc8 {[%emt 0:00:00] Repels Rc7} 27. Bb6 {[%emt 0:00:55]} (27. Rxc8 $11 Rxc8 28. Rc1) 27... Bh6 $15 {[%emt 0:00:00]} 28. Rcd1 {[%emt 0:01:33] Now White is beyond hope.} (28. Rxc8 $17 {was necessary.} Rxc8 29. Ng3) 28... Rc2 {[%emt 0:00:00][%cal Ob5b4] ...b4! would now be deadly.} 29. Nc1 $2 {[%emt 0:01:03]} (29. b4) 29... f5 {[%emt 0:00:00]} (29... Rb8 $142 30. Bf2 b4) 30. Nd3 $19 {[%emt 0:00:16]} fxe4 {[%emt 0:00:00]} 31. fxe4 {[%emt 0:00:01]} (31. Nb4 $142 Rd2 32. Rxd2 Bxd2 33. Rxe4) 31... Bg4 {[%emt 0:00:00]} 32. Nb4 $2 {[%emt 0:02:10]} (32. Rc1 Bxc1 33. Rxc1 Rxc1+ 34. Nxc1) 32... Bxd1 {[%emt 0:00:00]} 33. Rxd1 {[%emt 0:00:00]} Re2 {[%emt 0:00:00] [#] Threatens to win with ...Qc8.} 34. Bc7 {[%emt 0:00:24]} (34. Nc6 $142 Qxb6+ (34... Rxe4 $2 35. Bc7 $19) 35. Qxb6 Be3+ (35... Rxe4 $2 {perishes.} 36. Qc7 $18) 36. Qxe3 Rxe3 37. Kf2 Rxe4 38. Rd3 Rf8+ 39. Rf3) 34... Qa7+ {[%emt 0:00:00]} 35. Kh1 {[%emt 0:00:24]} Qf2 {[%emt 0:05:30] Weighted Error Value: White=0.86/Black=0.34.  Loses game:     	White=1     	---        Mistake:       	White=6     	Black=2      Inaccurate:     	White=4     	Black=2      OK:         	White=7     	Black=10     Best:        	White=1     	Black=4} 0-1

[Event "Charlotte Spring IM-C 2024"]
[Site "Charlotte"]
[Date "2024.03.29"]
[Round "4.3"]
[White "Horobetz, Graham"]
[Black "Komarov, Dimitri"]
[Result "0-1"]
[ECO "C07"]
[WhiteElo "2252"]
[BlackElo "2448"]
[Annotator "TA"]
[PlyCount "32"]
[EventDate "2024.03.27"]
[EventType "tourn"]
[EventCountry "USA"]
[SourceTitle "playchess.com"]
[Source "ChessBase"]
[SourceQuality "1"]
[TimeControl "5400+30"]

{[%evp 12,32,0,-79,-81,-89,-105,-96,-93,-108,-114,-122,-133,-132,-93,-100,-94,-112,-89,-102,-97,-283,-284]} 1. e4 {[%emt 0:00:03]} e6 {[%emt 0:00:03]} 2. d4 {[%emt 0:00:09]} d5 {[%emt 0:00:03]} 3. Nd2 {[%emt 0:00:09]} c5 {[%emt 0:00:07]} 4. Ngf3 {[%emt 0:00:08]} cxd4 {[%emt 0:00:07]} 5. Nxd4 {[%emt 0:00:16]} Nf6 {[%emt 0:00:49]} 6. e5 {[%emt 0:00:56]} Nfd7 {[%emt 0:00:11]} 7. f4 {[%emt 0:03:55] [#]} (7. N2f3 $11) 7... Nxe5 $1 $17 {[%emt 0:01:40]} 8. Nxe6 {[%emt 0:04:40]} (8. c3 Nec6) 8... Bxe6 {[%emt 0:00:20]} 9. fxe5 {[%emt 0:00:23]} Nc6 {[%emt 0:01:37][%cal Of8c5,Bb8c6,Bc6b4,Bb4a2,Ba2c3][%mdl 32] Black is better.} 10. Nf3 {[%emt 0:03:46]} Bc5 {[%emt 0:01:34] Wards off Be3} 11. Qd3 {[%emt 0:07:01]} Qb6 {[%emt 0:12:06]} 12. Qb5 {[%emt 0:01:15]} O-O {[%emt 0:01:11]} 13. Qxb6 {[%emt 0:00:33]} axb6 {[%emt 0:00:14]} 14. Bf4 {[%emt 0:09:45]} Nb4 {[%emt 0:04:46]} 15. Kd2 {[%emt 0:03:36]} Nxa2 {[%emt 0:01:36] Black is much more active.} 16. c3 $2 {[%emt 0:03:49] [#]} (16. Bd3 $17) 16... Nxc3 $1 {[%emt 0:00:22][%mdl 512] Weighted Error Value: White=0.35/Black=0.09 (flawless) .  Loses game:     	White=1     	---        OK:         	White=4     	Black=3      Best:        	---       	Black=1      Brilliant:      	---       	Black=1} 0-1

[Event "Charlotte Spring IM-C 2024"]
[Site "Charlotte"]
[Date "2024.03.29"]
[Round "4.4"]
[White "Kunka, Harshid"]
[Black "Melillo, Lucius"]
[Result "1/2-1/2"]
[ECO "C83"]
[WhiteElo "2294"]
[BlackElo "2274"]
[Annotator "RC"]
[PlyCount "86"]
[EventDate "2024.03.27"]
[EventType "tourn"]
[EventCountry "USA"]
[SourceTitle "playchess.com"]
[Source "ChessBase"]
[SourceQuality "1"]
[TimeControl "5400+30"]

1. e4 {[%emt 0:00:03]} e5 {[%emt 0:00:02]} 2. Nf3 {[%emt 0:00:10]} Nc6 {[%emt 0:00:02]} 3. Bb5 {[%emt 0:00:10]} a6 {[%emt 0:00:03]} 4. Ba4 {[%emt 0:00:08]} Nf6 {[%emt 0:00:02]} 5. O-O {[%emt 0:00:09]} Nxe4 {[%emt 0:00:02]} 6. d4 {[%emt 0:00:20]} b5 {[%emt 0:00:03]} 7. Bb3 {[%emt 0:00:09]} d5 {[%emt 0:00:02]} 8. dxe5 {[%emt 0:00:15]} Be6 {[%emt 0:00:03]} 9. Be3 {[%emt 0:00:18]} Be7 {[%emt 0:00:33]} 10. c3 {[%emt 0:00:50]} O-O {[%emt 0:00:07]} 11. Nbd2 {[%emt 0:00:03]} Qd7 {[%emt 0:05:32]} 12. h3 {[%emt 0:15:08]} Rad8 {[%emt 0:06:24]} 13. Nd4 {[%emt 0:04:14]} Nxd2 {[%emt 0:01:50]} 14. Bxd2 {[%emt 0:01:26]} Nxe5 {[%emt 0:06:00]} 15. f4 {[%emt 0:03:03]} Nc6 {[%emt 0:00:17]} 16. Nxe6 {[%emt 0:01:25]} fxe6 {[%emt 0:00:52]} 17. Qe2 {[%emt 0:01:16]} Rfe8 {[%emt 0:03:22]} 18. Rae1 {[%emt 0:01:51]} e5 {[%emt 0:08:28]} 19. fxe5 {[%emt 0:04:45]} Bc5+ {[%emt 0:02:07]} 20. Kh1 {[%emt 0:00:06]} Nxe5 {[%emt 0:04:02]} 21. Qh5 {[%emt 0:10:09]} g6 {[%emt 0:03:25]} 22. Qg5 {[%emt 0:09:03]} Nc4 {[%emt 0:00:52]} 23. Bf4 {[%emt 0:01:26]} c6 {[%emt 0:16:55]} 24. Bc2 {[%emt 0:07:09]} Rxe1 {[%emt 0:01:01]} 25. Rxe1 {[%emt 0:00:09]} Re8 {[%emt 0:00:15]} 26. Rf1 {[%emt 0:02:43]} Qe7 {[%emt 0:06:07]} 27. Qg3 {[%emt 0:04:44]} Bd6 {[%emt 0:02:34]} 28. Bxd6 {[%emt 0:01:36]} Qxd6 {[%emt 0:00:19]} 29. Qxd6 {[%emt 0:00:04]} Nxd6 {[%emt 0:00:08]} 30. Rf6 {[%emt 0:00:06]} Rd8 {[%emt 0:01:07]} 31. g4 {[%emt 0:00:02]} c5 {[%emt 0:01:30]} 32. b4 {[%emt 0:05:05]} cxb4 {[%emt 0:03:14]} 33. cxb4 {[%emt 0:00:04]} d4 {[%emt 0:00:09]} 34. Bd3 {[%emt 0:00:12]} Nc4 {[%emt 0:04:00]} 35. Rxa6 {[%emt 0:00:24]} Nb2 {[%emt 0:00:59]} 36. Bxb5 {[%emt 0:01:53]} d3 {[%emt 0:00:09]} 37. Bxd3 {[%emt 0:00:07]} Nxd3 {[%emt 0:01:17]} 38. b5 {[%emt 0:03:07]} Nc5 {[%emt 0:00:30]} 39. Ra5 {[%emt 0:03:32]} Rd1+ {[%emt 0:04:57]} 40. Kh2 {[%emt 0:00:06]} Rb1 {[%emt 0:00:16]} 41. a4 {[%emt 0:02:18]} Rb4 {[%emt 0:02:36]} 42. b6 {[%emt 0:00:24]} Nxa4 {[%emt 0:00:29]} 43. b7 {[%emt 0:00:07]} Rxb7 {[%emt 0:00:03]} 1/2-1/2

[Event "Charlotte Spring IM-C 2024"]
[Site "Charlotte"]
[Date "2024.03.29"]
[Round "4.5"]
[White "Nguyen, James Le"]
[Black "Wu, Sibo"]
[Result "1/2-1/2"]
[ECO "B30"]
[WhiteElo "2114"]
[BlackElo "2142"]
[Annotator "NA RC"]
[PlyCount "60"]
[EventDate "2024.03.27"]
[EventType "tourn"]
[EventCountry "USA"]
[SourceTitle "playchess.com"]
[Source "ChessBase"]
[SourceQuality "1"]
[TimeControl "5400+30"]

1. e4 {[%emt 0:01:56]} c5 {[%emt 0:00:22]} 2. Nf3 {[%emt 0:00:10]} Nc6 {[%emt 0:00:08]} 3. Bb5 {[%emt 0:00:07]} e6 {[%emt 0:00:11]} 4. O-O {[%emt 0:00:12]} Nge7 {[%emt 0:00:19]} 5. Re1 {[%emt 0:00:10]} a6 {[%emt 0:00:15]} 6. Bf1 {[%emt 0:00:07]} d5 {[%emt 0:00:15]} 7. exd5 {[%emt 0:00:17]} Nxd5 {[%emt 0:00:09]} 8. d4 {[%emt 0:00:07]} Nf6 $11 {[%emt 0:00:37]} 9. Be3 {[%emt 0:00:29]} cxd4 {[%emt 0:10:20]} 10. Nxd4 {[%emt 0:00:22]} Nxd4 {[%emt 0:00:14]} 11. Bxd4 {[%emt 0:00:52]} Bd7 {[%emt 0:01:13]} 12. c4 {[%emt 0:01:07]} Be7 {[%emt 0:14:43]} 13. Nc3 {[%emt 0:00:43]} O-O {[%emt 0:03:16]} 14. Qb3 {[%emt 0:09:16]} Bc6 {[%emt 0:00:50]} 15. Rad1 {[%emt 0:02:44]} Qe8 {[%emt 0:03:28]} 16. Qc2 {[%emt 0:05:39]} b5 {[%emt 0:03:47]} 17. c5 {[%emt 0:01:41]} b4 {[%emt 0:03:38]} 18. Bxf6 {[%emt 0:03:49]} Bxf6 {[%emt 0:04:22]} 19. Ne4 {[%emt 0:02:41]} Be7 {[%emt 0:00:16]} 20. Nd6 {[%emt 0:02:41]} Qb8 {[%emt 0:00:15]} 21. Bd3 {[%emt 0:08:34]} h6 {[%emt 0:02:25]} 22. Bh7+ {[%emt 0:01:50]} Kh8 {[%emt 0:00:33]} 23. Be4 {[%emt 0:03:12]} Qc7 {[%emt 0:00:44]} 24. Bxc6 {[%emt 0:00:53]} Qxc6 {[%emt 0:00:09]} 25. Qe4 {[%emt 0:04:05]} Qxe4 {[%emt 0:11:04]} 26. Rxe4 {[%emt 0:00:45]} a5 {[%emt 0:01:48]} 27. Nb7 {[%emt 0:09:11]} Rfc8 {[%emt 0:18:18]} 28. Rc4 {[%emt 0:02:54]} Rc7 {[%emt 0:03:40]} 29. c6 {[%emt 0:06:55]} Ra6 {[%emt 0:00:21]} 30. Rdc1 {[%emt 0:01:32]} e5 {[%emt 0:02:57]} 1/2-1/2

[Event "Charlotte Spring IM-C 2024"]
[Site "Charlotte"]
[Date "2024.03.30"]
[Round "5.1"]
[White "Wu, Sibo"]
[Black "Eckert, Doug"]
[Result "1/2-1/2"]
[ECO "D02"]
[WhiteElo "2142"]
[BlackElo "2146"]
[Annotator "RC"]
[PlyCount "75"]
[EventDate "2024.03.27"]
[EventType "tourn"]
[EventCountry "USA"]
[SourceTitle "playchess.com"]
[Source "ChessBase"]
[SourceQuality "1"]
[TimeControl "5400+30"]

1. d4 {[%emt 1:31:00]} d5 {[%emt 1:31:00]} 2. Bf4 {[%emt 0:00:30]} Nf6 {[%emt 0:00:30]} 3. e3 {[%emt 0:00:30]} e6 {[%emt 0:00:30]} 4. Nf3 {[%emt 0:00:30]} Bd6 {[%emt 0:00:30]} 5. Ne5 {[%emt 0:00:30]} O-O {[%emt 0:00:30]} 6. Nd2 {[%emt 0:00:30]} c5 {[%emt 0:00:30]} 7. c3 {[%emt 0:00:30]} Qc7 {[%emt 0:00:30]} 8. Bd3 {[%emt 0:00:30]} Nc6 {[%emt 0:00:30]} 9. Ndf3 {[%emt 0:00:30]} cxd4 {[%emt 0:00:30]} 10. cxd4 {[%emt 0:00:30]} Ne4 {[%emt 0:00:30]} 11. O-O {[%emt 0:00:30]} f6 {[%emt 0:00:30]} 12. Nxc6 {[%emt 0:00:30]} Bxf4 {[%emt 0:00:30]} 13. exf4 {[%emt 0:00:30]} bxc6 {[%emt 0:00:30]} 14. Qc1 {[%emt 0:00:30]} Bd7 {[%emt 0:00:30]} 15. Re1 {[%emt 0:00:30]} Nd6 {[%emt 0:00:30]} 16. Qc2 {[%emt 0:00:30]} h6 {[%emt 0:00:30]} 17. Nh4 {[%emt 0:00:30]} f5 {[%emt 0:00:30]} 18. Ng6 {[%emt 0:00:30]} Rfd8 {[%emt 0:00:30]} 19. Rac1 {[%emt 0:00:30]} Qb6 {[%emt 0:00:30]} 20. Qc3 {[%emt 0:00:30]} Ne4 {[%emt 0:00:30]} 21. Bxe4 {[%emt 0:00:30]} dxe4 {[%emt 0:00:30]} 22. Ne5 {[%emt 0:00:30]} Be8 {[%emt 0:00:30]} 23. Red1 {[%emt 0:00:30]} Kh7 {[%emt 0:00:30]} 24. h3 {[%emt 0:00:30]} Rd5 {[%emt 0:00:30]} 25. Nc4 {[%emt 0:00:30]} Qc7 {[%emt 0:00:30]} 26. Ne3 {[%emt 0:00:30]} Rdd8 {[%emt 0:00:30]} 27. g3 {[%emt 0:00:30]} Qb6 {[%emt 0:00:30]} 28. b3 {[%emt 0:00:30]} Rab8 {[%emt 0:00:30]} 29. Qc4 {[%emt 0:00:30]} Rd6 {[%emt 0:00:30]} 30. Qc5 {[%emt 0:00:30]} Rbd8 {[%emt 0:00:30]} 31. Qe5 {[%emt 0:00:30]} Qb5 {[%emt 0:00:30]} 32. Rc5 {[%emt 0:00:30]} Qe2 {[%emt 0:00:30]} 33. Rc2 {[%emt 0:00:30]} Qh5 {[%emt 0:00:30]} 34. Kh2 {[%emt 0:00:30]} Qf7 {[%emt 0:00:30]} 35. Qc5 {[%emt 0:00:30]} Qb7 {[%emt 0:00:30]} 36. Qe5 {[%emt 0:00:30]} Qf7 {[%emt 0:00:30]} 37. Qc5 {[%emt 0:00:30]} Qb7 {[%emt 0:00:30]} 38. Qe5 1/2-1/2

[Event "Charlotte Spring IM-C 2024"]
[Site "Charlotte"]
[Date "2024.03.30"]
[Round "5.2"]
[White "Melillo, Lucius"]
[Black "Nguyen, James Le"]
[Result "1/2-1/2"]
[ECO "D36"]
[WhiteElo "2274"]
[BlackElo "2114"]
[Annotator "RC"]
[PlyCount "83"]
[EventDate "2024.03.27"]
[EventType "tourn"]
[EventCountry "USA"]
[SourceTitle "playchess.com"]
[Source "ChessBase"]
[SourceQuality "1"]
[TimeControl "5400+30"]

1. d4 {[%emt 1:31:00]} d5 {[%emt 1:31:00]} 2. c4 e6 {[%emt 0:00:30]} 3. Nf3 {[%emt 0:01:00]} Nf6 {[%emt 0:00:30]} 4. Nc3 {[%emt 0:00:30]} Be7 {[%emt 0:00:30]} 5. Bg5 {[%emt 0:00:30]} O-O {[%emt 0:00:30]} 6. e3 Nbd7 {[%emt 0:00:30]} 7. Qc2 {[%emt 0:01:00]} Re8 {[%emt 0:00:30]} 8. cxd5 {[%emt 0:00:30]} exd5 {[%emt 0:00:30]} 9. Bd3 {[%emt 0:00:30]} c6 {[%emt 0:00:30]} 10. O-O {[%emt 0:00:30]} h6 {[%emt 0:00:30]} 11. Bf4 {[%emt 0:00:30]} Nf8 {[%emt 0:00:30]} 12. h3 {[%emt 0:00:30]} Be6 {[%emt 0:00:30]} 13. Rab1 {[%emt 0:00:30]} a5 {[%emt 0:00:30]} 14. a3 {[%emt 0:00:30]} Bd6 {[%emt 0:00:30]} 15. Bxd6 {[%emt 0:00:30]} Qxd6 {[%emt 0:00:30]} 16. Na4 {[%emt 0:00:30]} N8d7 {[%emt 0:00:30]} 17. Rfc1 {[%emt 0:00:30]} Ne4 {[%emt 0:00:30]} 18. b4 {[%emt 0:00:30]} axb4 19. axb4 {[%emt 0:00:30]} b5 20. Nc5 {[%emt 0:00:30]} Nexc5 {[%emt 0:01:30]} 21. dxc5 {[%emt 0:00:30]} Qc7 {[%emt 0:00:30]} 22. Ra1 {[%emt 0:00:30]} Ne5 {[%emt 0:00:30]} 23. Nd4 {[%emt 0:00:30]} Bd7 {[%emt 0:00:30]} 24. Qc3 {[%emt 0:00:30]} Nxd3 25. Qxd3 {[%emt 0:00:30]} Qe5 {[%emt 0:01:00]} 26. Ra3 {[%emt 0:00:30]} f5 {[%emt 0:00:30]} 27. Rca1 Rxa3 {[%emt 0:00:30]} 28. Rxa3 {[%emt 0:01:00]} f4 {[%emt 0:00:30]} 29. Ra7 {[%emt 0:00:30]} fxe3 {[%emt 0:00:30]} 30. Rxd7 {[%emt 0:00:30]} e2 {[%emt 0:00:30]} 31. Nxe2 {[%emt 0:00:30]} Qxe2 {[%emt 0:00:30]} 32. Qg3 {[%emt 0:00:30]} Qe5 {[%emt 0:00:30]} 33. f4 {[%emt 0:00:30]} Qe1+ 34. Kh2 {[%emt 0:00:30]} Qxg3+ {[%emt 0:01:00]} 35. Kxg3 {[%emt 0:00:30]} Re4 {[%emt 0:00:30]} 36. Rc7 {[%emt 0:00:30]} Rxb4 {[%emt 0:00:30]} 37. Rxc6 {[%emt 0:00:30]} Rc4 38. Rc8+ {[%emt 0:00:30]} Kf7 {[%emt 0:01:00]} 39. c6 Rc3+ {[%emt 0:00:30]} 40. Kf2 {[%emt 0:01:00]} b4 {[%emt 0:00:30]} 41. Rb8 {[%emt 0:00:30]} Rxc6 {[%emt 0:00:30]} 42. Rxb4 {[%emt 0:00:30]} 1/2-1/2

[Event "Charlotte Spring IM-C 2024"]
[Site "Charlotte"]
[Date "2024.03.30"]
[Round "5.3"]
[White "Komarov, Dimitri"]
[Black "Kunka, Harshid"]
[Result "1/2-1/2"]
[ECO "D55"]
[WhiteElo "2448"]
[BlackElo "2294"]
[Annotator "RC"]
[PlyCount "54"]
[EventDate "2024.03.27"]
[EventType "tourn"]
[EventCountry "USA"]
[SourceTitle "playchess.com"]
[Source "ChessBase"]
[SourceQuality "1"]
[TimeControl "5400+30"]

1. d4 {[%emt 0:00:03]} d5 {[%emt 0:00:07]} 2. c4 {[%emt 0:00:26]} e6 3. Nc3 {[%emt 0:01:28]} Nf6 4. Bg5 {[%emt 0:00:01]} Be7 {[%emt 0:00:20]} 5. e3 {[%emt 0:00:22]} O-O {[%emt 0:00:13]} 6. Nf3 {[%emt 0:01:00]} h6 {[%emt 0:00:07]} 7. Bxf6 {[%emt 0:00:06]} Bxf6 {[%emt 0:00:04]} 8. Qc2 {[%emt 0:00:02]} c6 {[%emt 0:00:46]} 9. Rd1 {[%emt 0:06:53]} Nd7 {[%emt 0:00:33]} 10. Be2 {[%emt 0:01:40]} a6 {[%emt 0:00:04]} 11. O-O {[%emt 0:05:55]} b5 {[%emt 0:00:52]} 12. b3 {[%emt 0:00:44]} Be7 {[%emt 0:09:25]} 13. e4 {[%emt 0:02:34]} bxc4 {[%emt 0:05:32]} 14. bxc4 {[%emt 0:00:10]} dxc4 {[%emt 0:00:39]} 15. Bxc4 {[%emt 0:03:24]} Qa5 {[%emt 0:08:11]} 16. e5 {[%emt 0:18:48]} Nb6 {[%emt 0:05:31]} 17. Ne4 {[%emt 0:00:05]} Nxc4 {[%emt 0:03:26]} 18. Qxc4 {[%emt 0:00:03]} Qd5 {[%emt 0:00:12]} 19. Qc2 {[%emt 0:00:13]} a5 {[%emt 0:00:53]} 20. Nc5 {[%emt 0:00:45]} Ba6 {[%emt 0:01:13]} 21. Rfe1 {[%emt 0:07:27]} Rfb8 {[%emt 0:06:51]} 22. Re3 {[%emt 0:20:37]} Rb4 {[%emt 0:06:59]} 23. Rc3 {[%emt 0:00:25]} Rc4 {[%emt 0:01:10]} 24. Nxa6 {[%emt 0:02:49]} Rxc3 {[%emt 0:00:06]} 25. Qxc3 {[%emt 0:00:04]} Rxa6 {[%emt 0:00:05]} 26. Rb1 {[%emt 0:01:10]} Ra8 {[%emt 0:01:41]} 27. Qc2 {[%emt 0:07:22]} Bb4 {[%emt 0:49:00]} 1/2-1/2